fUST/lending_fUST_20240817
["ID","MTS","AMOUNT","RATE_DAILY","PERIOD"]
[335110783,1723842643578,-22.49848345,0.002374,120]
[335110845,1723842646632,-115.70414027,0.002374,120]
[335110985,1723842659450,389.42458281,0.0008275,120]
[335110986,1723842659474,1938.95473368,0.0008275,120]
[335110987,1723842659496,2939.328798,0.0008275,120]
[335110988,1723842663485,500.0,0.00045239,120]
[335110989,1723842679255,4576.54681285,0.0004524,30]
[335110990,1723842679279,7922.7144637,0.0004524,30]
[335110994,1723843549128,-196.97579719,0.00013051,2]
[335110995,1723843630103,-289.05724596,0.00013051,2]
[335110996,1723843630132,-1754.11162617,0.00013051,2]
[335110997,1723843630160,-2460.96139498,0.00013051,2]
[335110998,1723843630185,-1166.36463409,0.00013233,2]
[335110999,1723843639117,-242.8733567,0.00013233,2]
[335111000,1723843651138,-575.96589196,0.00013233,2]
[335111005,1723843747245,-500.0,0.00013051,2]
[335111006,1723843747268,-1339.20047511,0.00013233,2]
[335111007,1723843747419,-1076.28697444,0.00013233,2]
[335111008,1723843747441,-301.4340064,0.00013333,2]
[335111009,1723843747466,-371.34730539,0.00014245,2]
[335111010,1723843747489,-300.0,0.00030837,2]
[335111011,1723843747514,-300.0,0.00030837,2]
[335111012,1723843747537,-3000.0,0.00030838,2]
[335111013,1723843747559,-21108.1693608,0.00035,120]
[335111014,1723843747580,-1637.11401,0.00041945,2]
[335111015,1723843747601,-20131.37970479,0.00042,30]
[335111016,1723843747623,-11376.21039638,0.00043831,30]
[335111017,1723843748218,-99.48370362,0.00043831,30]
[335111018,1723843748242,-4446.87849984,0.000439,30]
[335111019,1723843753125,-79254.16338161,0.000439,30]
[335111020,1723843753149,-500.0,0.00044902,30]
[335111021,1723843753170,-483.98460221,0.00045852,15]
[335111022,1723843753190,-1333.66462,0.000478,57]
[335111023,1723843753214,-1000.0,0.000483,57]
[335111024,1723843753236,-1000.0,0.000488,57]
[335111025,1723843753257,-589.6077254,0.00057834,2]
[335111026,1723843753278,-153.0,0.00057834,60]
[335111027,1723843753307,-1637.11401,0.00062918,30]
[335111028,1723843753330,-3000.0,0.00069,120]
[335111029,1723843753355,-3000.0,0.0006901,120]
[335111030,1723843753379,-4222.504297,0.0006902,120]
[335111031,1723843753402,-500.0,0.00069999,7]
[335111032,1723843753425,-500.0,0.00069999,120]
[335111033,1723843753446,-500.0,0.00069999,7]
[335111034,1723843753471,-500.0,0.00069999,120]
[335111035,1723843753493,-500.0,0.00069999,7]
[335111036,1723843753516,-500.0,0.00069999,120]
[335111037,1723843753540,-500.0,0.00069999,7]
[335111038,1723843753562,-500.0,0.00069999,7]
[335111039,1723843753583,-500.0,0.00069999,120]
[335111040,1723843753605,-500.0,0.00069999,7]
[335111041,1723843753626,-500.0,0.00069999,7]
[335111042,1723843753729,-500.0,0.00069999,120]
[335111043,1723843753751,-500.0,0.00069999,7]
[335111044,1723843753773,-500.0,0.00069999,120]
[335111045,1723843753794,-500.0,0.00069999,7]
[335111046,1723843753814,-500.0,0.00069999,120]
[335111047,1723843753836,-500.0,0.00069999,7]
[335111048,1723843753855,-255.08537515,0.00069999,120]
[335111049,1723843753876,-500.0,0.00069999,7]
[335111050,1723843753896,-500.0,0.00069999,120]
[335111051,1723843753917,-500.0,0.00069999,7]
[335111052,1723843753937,-500.0,0.00069999,120]
[335111053,1723843753959,-500.0,0.00069999,7]
[335111054,1723843753980,-500.0,0.00069999,7]
[335111055,1723843754001,-500.0,0.00069999,120]
[335111056,1723843754023,-500.0,0.00069999,7]
[335111057,1723843754045,-500.0,0.00069999,7]
[335111058,1723843754066,-500.0,0.00069999,7]
[335111059,1723843754088,-345.14826421,0.00069999,7]
[335111060,1723843754110,-500.0,0.00069999,7]
[335111061,1723843754130,-9717.53465492,0.0007,120]
[335111062,1723843754151,-150.0,0.001,120]
[335111063,1723843754172,-5695.28988128,0.001,120]
[335111064,1723843754192,-150.0,0.0011,120]
[335111065,1723843754212,-500.0,0.0011658,120]
[335111066,1723843754233,-500.0,0.00116624,120]
[335111067,1723843754254,-150.0,0.0012,120]
[335111068,1723843754274,-150.0,0.0013,120]
[335111069,1723843754296,-150.0,0.0014,120]
[335111070,1723843754318,-500.0,0.00142884,120]
[335111071,1723843754338,-150.0,0.0015,120]
[335111072,1723843754358,-150.0,0.0016,120]
[335111073,1723843754380,-150.0,0.0017,120]
[335111074,1723843754400,-150.0,0.0017,120]
[335111075,1723843754423,-150.0,0.0018,120]
[335111076,1723843754448,-150.0,0.0018,120]
[335111077,1723843754472,-150.0,0.0019,120]
[335111078,1723843754492,-150.0,0.0019,120]
[335111079,1723843754511,-470.29452816,0.001925,120]
[335111080,1723843754534,-150.0,0.002,120]
[335111081,1723843754554,-150.0,0.002,120]
[335111082,1723843754574,-500.0,0.002,120]
[335111083,1723843754595,-150.0,0.0021,120]
[335111084,1723843754619,-150.0,0.0021,120]
[335111085,1723843754642,-287.3849095,0.00217475,120]
[335111086,1723843754665,-120186.38034839,0.00218,120]
[335111087,1723843754731,-162477.35789746,0.00218,120]
[335111088,1723843756125,-1143.08762355,0.00218,120]
[335111089,1723843756211,-272634.77852194,0.00218,120]
[335111090,1723843760110,-11896.20149031,0.00218,120]
[335111091,1723843764128,-2177.30950976,0.00218,120]
[335111092,1723843766142,-1200.447766,0.00218,120]
[335111131,1723843832558,-618.66991524,0.00047471,2]
[335111133,1723843832568,-395.36908271,0.00197999,31]
[335111134,1723843832580,-7.38586699,0.00197999,31]
[335111136,1723843832590,-192.40117781,0.00197999,120]
[335111137,1723843832601,-500.0,0.00197999,120]
[335111139,1723843832610,-500.0,0.00197999,120]
[335111141,1723843832619,-500.0,0.00197999,120]
[335111142,1723843832631,-500.0,0.00197999,120]
[335111143,1723843832642,-245.75005674,0.00197999,120]
[335111146,1723843832653,-500.0,0.00197999,120]
[335111148,1723843832663,-500.0,0.00197999,120]
[335111150,1723843832672,-500.0,0.00197999,120]
[335111152,1723843832682,-844.52266113,0.00198,120]
[335111154,1723843832694,-642.09001477,0.00198,120]
[335111156,1723843832727,-194.9012918,0.00198,120]
[335111157,1723843833658,254.53503755,0.00099897,120]
[335111178,1723843838771,-22004.62962963,0.00197,120]
[335111179,1723843839522,-843234.32314829,0.00197,120]
[335111206,1723843840759,-831.44662729,0.00197,120]
[335111264,1723843846740,-362872.65421368,0.00195,120]
[335111266,1723843846751,-2259.6813954,0.00195,120]
[335111267,1723843865312,420.72302957,0.00014519,2]
[335111275,1723844735142,-238.19923975,0.00012782,2]
[335111277,1723844834140,-1765.95777024,0.00012898,2]
[335111278,1723844834162,-1612.28857669,0.00012985,2]
[335111279,1723844834183,-2164.74871652,0.00012985,2]
[335111280,1723844834205,-178.97271367,0.00012999,2]
[335111281,1723844834227,-504.80821134,0.00013025,2]
[335111282,1723844834248,-494.96995604,0.00013025,2]
[335111283,1723844834269,-665.1114012,0.00013051,2]
[335111284,1723844834290,-332.60230837,0.00013598,2]
[335111285,1723844834374,-154.91162192,0.00014245,2]
[335111286,1723844834396,-500.0,0.00014245,2]
[335111287,1723844834419,-166.416199,0.00014247,2]
[335111288,1723844834442,-195.00884624,0.00014519,2]
[335111289,1723844836102,-601.5809545,0.00013051,2]
[335111290,1723844836123,-270.63725343,0.00014519,2]
[335111291,1723844836145,-285.19829237,0.00015493,2]
[335111292,1723844838135,-1712.83970716,0.00015493,2]
[335111293,1723844838222,-53.75962879,0.00015493,2]
[335111294,1723844838244,-218.46393296,0.00017598,2]
[335111295,1723844838266,-396.20347604,0.0002,2]
[335111296,1723844838288,-739.06260046,0.00025544,2]
[335111297,1723844848259,-2260.93739954,0.00025544,2]
[335111298,1723844848284,-413.841616,0.00026103,2]
[335111299,1723844848310,-2529.2962772,0.00026561,2]
[335111300,1723844848332,-466.49455219,0.00028061,2]
[335111301,1723844848356,-151.0,0.0003,120]
[335111302,1723844848379,-1311.19424013,0.000379,2]
[335111303,1723844848401,-2513.63334533,0.000379,2]
[335111304,1723844848423,-500.0,0.00037989,7]
[335111305,1723844848445,-538.34980713,0.00037989,7]
[335111306,1723844848467,-33886.6255371,0.0003799,4]
[335111307,1723844848488,-76695.6,0.00038,20]
[335111308,1723844848508,-5313.82,0.00038,10]
[335111309,1723844848529,-413.841616,0.00039154,2]
[335111310,1723844848550,-500.0,0.00042465,120]
[335111311,1723844848570,-13553.0452,0.00043797,30]
[335111312,1723844848592,-281.92846479,0.00043936,31]
[335111313,1723844848614,-500.0,0.00043936,120]
[335111314,1723844848639,-500.0,0.00043936,120]
[335111315,1723844848661,-500.0,0.00043936,120]
[335111316,1723844848684,-500.0,0.00043936,120]
[335111317,1723844848762,-500.0,0.00043936,120]
[335111318,1723844848784,-500.0,0.00043936,120]
[335111319,1723844848808,-500.0,0.00043936,120]
[335111320,1723844848833,-339.52503972,0.00043936,120]
[335111321,1723844848855,-500.0,0.00043936,120]
[335111322,1723844848879,-500.0,0.00043936,120]
[335111323,1723844848906,-500.0,0.00043936,120]
[335111324,1723844848930,-250.0,0.00043936,120]
[335111325,1723844848958,-259.50686655,0.00043937,5]
[335111329,1723844947142,-1866.79621488,0.00012629,2]
[335111330,1723844947164,-505.92952846,0.0002,2]
[335111331,1723844947186,-1375.68208424,0.00047471,14]
[335111332,1723844947208,-2199.42917712,0.00049215,28]
[335111333,1723844947229,-500.0,0.00049315,120]
[335111334,1723844947252,-500.0,0.00049315,120]
[335111335,1723844947274,-500.0,0.00049315,120]
[335111336,1723844947295,-500.0,0.00049315,120]
[335111337,1723844947317,-60.21288987,0.00049315,120]
[335111338,1723844954100,-439.78711013,0.00049315,120]
[335111339,1723844954122,-500.0,0.00049315,120]
[335111340,1723844954144,-500.0,0.00049315,120]
[335111341,1723844954166,-500.0,0.00049315,120]
[335111342,1723844954187,-500.0,0.00049315,120]
[335111343,1723844954208,-500.0,0.00049315,120]
[335111344,1723844954230,-500.0,0.00049315,120]
[335111345,1723844954253,-500.0,0.00049315,120]
[335111346,1723844954275,-500.0,0.00049315,120]
[335111347,1723844954298,-500.0,0.00049315,120]
[335111348,1723844954322,-500.0,0.00049315,120]
[335111349,1723844954346,-54.39971275,0.00049315,120]
[335111351,1723844955101,-445.60028725,0.00049315,120]
[335111352,1723844955124,-500.0,0.00049315,120]
[335111353,1723844955146,-500.0,0.00049315,120]
[335111354,1723844955167,-15.91638289,0.00049315,120]
[335111360,1723844959095,-484.08361711,0.00049315,120]
[335111361,1723844959119,-500.0,0.00049315,120]
[335111362,1723844959142,-500.0,0.00049315,120]
[335111363,1723844959164,-500.0,0.00049315,120]
[335111365,1723844959187,-500.0,0.00049315,120]
[335111366,1723844959210,-500.0,0.00049315,120]
[335111368,1723844959232,-500.0,0.00049315,120]
[335111369,1723844959254,-500.0,0.00049315,120]
[335111371,1723844959276,-500.0,0.00049315,120]
[335111372,1723844959298,-500.0,0.00049315,120]
[335111373,1723844959321,-500.0,0.00049315,120]
[335111374,1723844959343,-500.0,0.00049315,120]
[335111375,1723844959364,-500.0,0.00049315,120]
[335111376,1723844959387,-500.0,0.00049315,120]
[335111377,1723844959410,-500.0,0.00049315,120]
[335111378,1723844959432,-500.0,0.00049315,120]
[335111379,1723844959453,-500.0,0.00049315,120]
[335111380,1723844959476,-500.0,0.00049315,120]
[335111381,1723844959498,-500.0,0.00049315,120]
[335111382,1723844959521,-500.0,0.00049315,120]
[335111383,1723844959543,-500.0,0.00049315,120]
[335111384,1723844959564,-500.0,0.00049315,120]
[335111385,1723844959588,-500.0,0.00049315,120]
[335111386,1723844959612,-500.0,0.00049315,120]
[335111387,1723844959636,-500.0,0.00049315,120]
[335111388,1723844959659,-500.0,0.00049315,120]
[335111389,1723844959747,-500.0,0.00049315,120]
[335111390,1723844959771,-450.92348289,0.00049315,120]
[335111391,1723844959808,-49.07651711,0.00049315,120]
[335111392,1723844959832,-500.0,0.00049315,120]
[335111393,1723844959854,-500.0,0.00049315,120]
[335111394,1723844959876,-500.0,0.00049315,120]
[335111395,1723844959897,-500.0,0.00049315,120]
[335111396,1723844959918,-579.4101347,0.00049315,120]
[335111397,1723844959940,-579.4101347,0.00049315,120]
[335111398,1723844959962,-579.4101347,0.00049315,120]
[335111399,1723844959984,-579.4101347,0.00049315,120]
[335111400,1723844960006,-579.4101347,0.00049315,120]
[335111401,1723844960029,-579.4101347,0.00049315,120]
[335111402,1723844960051,-579.4101347,0.00049315,120]
[335111403,1723844960072,-579.4101347,0.00049315,120]
[335111404,1723844960093,-579.4101347,0.00049315,120]
[335111405,1723844960116,-579.4101347,0.00049315,120]
[335111406,1723844960139,-579.4101347,0.00049315,120]
[335111407,1723844960160,-579.4101347,0.00049315,120]
[335111408,1723844960181,-579.4101347,0.00049315,120]
[335111409,1723844960202,-579.4101347,0.00049315,120]
[335111410,1723844960224,-579.4101347,0.00049315,120]
[335111411,1723844960247,-579.4101347,0.00049315,120]
[335111412,1723844960269,-579.4101347,0.00049315,120]
[335111413,1723844960291,-579.4101347,0.00049315,120]
[335111414,1723844960312,-579.4101347,0.00049315,120]
[335111415,1723844960333,-579.4101347,0.00049315,120]
[335111416,1723844960355,-579.4101347,0.00049315,120]
[335111417,1723844960375,-279.32480077,0.00049315,120]
[335111418,1723844965081,-300.08533393,0.00049315,120]
[335111419,1723844965104,-579.4101347,0.00049315,120]
[335111420,1723844965127,-579.4101347,0.00049315,120]
[335111421,1723844965149,-579.4101347,0.00049315,120]
[335111422,1723844965170,-579.4101347,0.00049315,120]
[335111423,1723844965191,-579.4101347,0.00049315,120]
[335111424,1723844965213,-579.4101347,0.00049315,120]
[335111425,1723844965236,-579.4101347,0.00049315,120]
[335111426,1723844965257,-579.4101347,0.00049315,120]
[335111427,1723844965278,-579.4101347,0.00049315,120]
[335111428,1723844965301,-579.4101347,0.00049315,120]
[335111429,1723844965322,-584.00862782,0.00049315,120]
[335111430,1723844965344,-584.00862782,0.00049315,120]
[335111431,1723844965365,-584.00862782,0.00049315,120]
[335111432,1723844965387,-584.00862782,0.00049315,120]
[335111433,1723844965409,-584.00862782,0.00049315,120]
[335111434,1723844965431,-584.00862782,0.00049315,120]
[335111435,1723844965456,-584.00862782,0.00049315,120]
[335111436,1723844965479,-680.46,0.00054794,120]
[335111437,1723844965511,-414.6786275,0.00056144,60]
[335111438,1723844965539,-294.2756488,0.00056144,2]
[335111439,1723844965563,-306.0,0.00056144,60]
[335111440,1723844965587,-306.0,0.00056144,60]
[335111441,1723844965610,-207.4367972,0.00056144,60]
[335111442,1723844965634,-207.4367972,0.00056144,60]
[335111443,1723844965657,-207.4367972,0.00056144,60]
[335111444,1723844965681,-207.2356574,0.00056965,60]
[335111445,1723844965704,-680.46,0.00057534,120]
[335111446,1723844965728,-151.0,0.0006,120]
[335111447,1723844965751,-680.46,0.00060273,120]
[335111448,1723844965775,-680.46,0.00063013,120]
[335111449,1723844965806,-680.46,0.00065753,120]
[335111450,1723844965830,-2000.0,0.00068245,120]
[335111451,1723844965858,-680.46,0.00068493,120]
[335111452,1723844965882,-3000.0,0.00069,120]
[335111453,1723844965907,-3000.0,0.0006901,120]
[335111454,1723844965933,-3000.0,0.0006902,120]
[335111455,1723844965957,-3000.0,0.0006903,120]
[335111456,1723844965981,-3501.072515,0.0006904,120]
[335111457,1723844966005,-500.0,0.00070863,120]
[335111458,1723844966029,-680.46,0.00071232,120]
[335111459,1723844966052,-500.0,0.00071963,120]
[335111460,1723844966075,-680.46,0.00073972,120]
[335111461,1723844966184,-680.46,0.00076712,120]
[335111462,1723844966208,-500.0,0.000794,120]
[335111463,1723844966234,-680.46,0.00079452,120]
[335111464,1723844966259,-2000.0,0.00081454,120]
[335111465,1723844966282,-680.46,0.00082191,120]
[335111466,1723844966303,-680.46,0.00084931,120]
[335111467,1723844966325,-500.0,0.00085684,120]
[335111468,1723844966346,-680.46,0.00087671,120]
[335111469,1723844966367,-307.0,0.0009,120]
[335111470,1723844966388,-680.46,0.0009041,120]
[335111471,1723844966411,-150.112233,0.000928,20]
[335111472,1723844966436,-680.46,0.0009315,120]
[335111473,1723844966461,-52752.04191103,0.000949,120]
[335111474,1723844969106,-1556.3307725,0.000949,120]
[335111507,1723845031762,-410.94017936,0.000949,120]
[335111513,1723845031804,-28097.45714256,0.000949,120]
[335111541,1723845032060,-16353.18221796,0.000949,120]
[335111569,1723845036589,6031.16774972,0.00088,120]
[335111634,1723845038584,-150789.52272545,0.00088,120]
[335111635,1723845038991,-101442.37842138,0.00088,120]
[335111636,1723845039003,-843234.32314829,0.00088,120]
[335111644,1723845040300,-3124.56724109,0.00088,120]
[335111645,1723845040313,-4021.097696,0.00088,120]
[335111646,1723845040326,-20315.23632363,0.00088,120]
[335111671,1723845044028,-27390.97383419,0.00088,120]
[335111672,1723845044041,-5323.95059977,0.00088,120]
[335111681,1723845046164,-27.54830916,0.00087,120]
[335111688,1723845623637,-154.77557542,0.00013497,2]
[335111689,1723845623665,-168.32934345,0.00013597,2]
[335111690,1723845623690,-154.81014333,0.00013599,2]
[335111691,1723845623717,-210.4,0.00013599,2]
[335111692,1723845623743,-500.0,0.00013971,2]
[335111693,1723845623770,-166.416199,0.00014247,2]
[335111694,1723845623795,-191.92946164,0.00014419,2]
[335111695,1723845624622,156.87111249,0.00013597,2]
[335111698,1723845934291,-245.30609513,0.00013597,2]
[335111699,1723845934315,-51.68081225,0.00013597,2]
[335111700,1723845935102,-230.59124262,0.00013597,2]
[335111701,1723846030081,-1824.11378747,0.00013597,2]
[335111702,1723846030166,-2061.01928405,0.00013597,2]
[335111703,1723846042160,-199.86963797,0.00013597,2]
[335111705,1723846046106,-929.28759648,0.00013597,2]
[335111706,1723846054144,-422.80575351,0.00013597,2]
[335111707,1723846054167,-3790.35786232,0.00013597,2]
[335111708,1723846054193,-332.58594198,0.00013597,2]
[335111709,1723846054215,-226.2781277,0.00013597,2]
[335111710,1723846054237,-377.08017831,0.00013971,2]
[335111711,1723846054259,-460.14618954,0.00014245,2]
[335111712,1723846054280,-157.65237765,0.00014245,2]
[335111713,1723846054302,-324.9275986,0.00040162,2]
[335111714,1723846054325,-465.50452882,0.00044611,15]
[335111715,1723846054347,-5070.20238583,0.0005538,2]
[335111716,1723846054371,-5070.20238583,0.00055741,2]
[335111717,1723846054392,-150.28145351,0.0005586,2]
[335111718,1723846054413,-5070.20238583,0.00056271,2]
[335111719,1723846054497,-5070.20238583,0.00056471,2]
[335111720,1723846054519,-306.0,0.00056924,60]
[335111721,1723846054543,-500.0,0.00064852,120]
[335111722,1723846054570,-164.8461049,0.00065018,2]
[335111723,1723846054612,-3845.987229,0.00069,120]
[335111724,1723846054636,-426.26434732,0.0008,120]
[335111725,1723846054659,-150.112237,0.000821,22]
[335111726,1723846054681,-500.0,0.0008219,120]
[335111727,1723846054707,-500.0,0.0008219,7]
[335111728,1723846054731,-500.0,0.0008219,7]
[335111729,1723846054754,-500.0,0.0008219,120]
[335111730,1723846054778,-500.0,0.0008219,7]
[335111731,1723846054801,-500.0,0.0008219,120]
[335111732,1723846054824,-500.0,0.0008219,7]
[335111733,1723846054846,-500.0,0.0008219,7]
[335111734,1723846054869,-500.0,0.0008219,120]
[335111735,1723846054892,-500.0,0.0008219,120]
[335111736,1723846054915,-500.0,0.0008219,7]
[335111737,1723846054938,-500.0,0.0008219,7]
[335111738,1723846054962,-565.14598356,0.0008219,120]
[335111739,1723846054985,-500.0,0.0008219,7]
[335111740,1723846055009,-500.0,0.0008219,120]
[335111741,1723846055033,-500.0,0.0008219,7]
[335111742,1723846055057,-500.0,0.0008219,120]
[335111743,1723846055079,-500.0,0.0008219,7]
[335111744,1723846055104,-500.0,0.0008219,120]
[335111745,1723846055131,-500.0,0.0008219,7]
[335111746,1723846055155,-500.0,0.0008219,7]
[335111747,1723846055179,-500.0,0.0008219,7]
[335111748,1723846055202,-454.02555388,0.0008219,7]
[335111749,1723846055229,-500.0,0.0008219,7]
[335111750,1723846055254,-500.0,0.0008219,7]
[335111751,1723846055280,-500.0,0.0008219,7]
[335111752,1723846055305,-500.0,0.0008219,7]
[335111753,1723846055335,-500.0,0.0008219,7]
[335111754,1723846055360,-500.0,0.0008219,7]
[335111755,1723846055432,-500.0,0.0008219,7]
[335111756,1723846055455,-500.0,0.0008219,120]
[335111757,1723846055477,-3000.0,0.00082191,120]
[335111758,1723846055498,-500.0,0.00083561,120]
[335111759,1723846055525,-150.112233,0.000842,17]
[335111760,1723846055547,-150.112233,0.000843,21]
[335111761,1723846055569,-150.112233,0.000843,19]
[335111762,1723846055591,-150.112233,0.000844,18]
[335111763,1723846055612,-150.112233,0.000845,23]
[335111764,1723846055636,-150.112233,0.000846,16]
[335111765,1723846055658,-150.112233,0.000847,23]
[335111766,1723846055679,-150.112233,0.000847,17]
[335111767,1723846055702,-150.112233,0.000848,19]
[335111768,1723846055724,-70512.86921426,0.0008485,120]
[335111773,1723846151120,-500.0,0.00056929,120]
[335111774,1723846151143,-17638.32304267,0.0008479,120]
[335111775,1723846155106,-11143.50142949,0.0008479,120]
[335111776,1723846159240,-103110.03029338,0.0008479,120]
[335111777,1723846165207,-1888.61074624,0.00014519,2]
[335111778,1723846165231,-15758.45279653,0.0008489,30]
[335111779,1723846165255,-150.112233,0.000849,21]
[335111780,1723846165278,-150.0,0.00085,120]
[335111781,1723846165298,-71591.78915444,0.00085,120]
[335111782,1723846167093,-220.4851378,0.0008479,120]
[335111783,1723846167469,-5117.32173262,0.0008479,120]
[335111784,1723846171088,-2052.25367597,0.0008479,120]
[335111785,1723846171115,-11871.97839426,0.0008479,120]
[335111786,1723846173083,-4986.06534856,0.0008479,120]
[335111801,1723846232012,-7922.7145,0.00043533,30]
[335111803,1723846232023,-981.76951182,0.0008475,2]
[335111805,1723846232033,-8307.42002178,0.0008477,120]
[335111836,1723846238135,-723.37166933,0.00079,120]
[335111840,1723846238169,-12770.63789978,0.00079,120]
[335111850,1723846238826,-843234.32314829,0.00079,120]
[335111851,1723846238838,-93105.20164755,0.00079,120]
[335111894,1723846246281,-85814.18719461,0.00078,120]
[335111903,1723846713198,9000.0,0.00023333,60]
[335111905,1723847148176,-3252.26493848,0.00012516,2]
[335111909,1723847226113,-217.17087336,0.00012515,2]
[335111910,1723847231094,-82.82912664,0.00012515,2]
[335111911,1723847231116,-3570.27760667,0.00012516,2]
[335111912,1723847231145,-421.82946413,0.00012516,2]
[335111913,1723847231172,-245.30609513,0.00012516,2]
[335111914,1723847231195,-705.65767415,0.00012516,2]
[335111915,1723847234097,-333.15287221,0.00012516,2]
[335111916,1723847241314,-428.71964977,0.00012516,2]
[335111917,1723847253140,-2145.45207588,0.00012516,2]
[335111918,1723847253163,-1067.5370934,0.00012516,2]
[335111919,1723847253186,-156.64123903,0.00012516,2]
[335111920,1723847253211,-659.04002506,0.00012516,2]
[335111922,1723847345108,-3131.31783726,0.00012516,2]
[335111923,1723847345130,-225.44791877,0.00012516,2]
[335111924,1723847345151,-600.8534117,0.00012971,2]
[335111925,1723847345172,-493.12601984,0.00012971,2]
[335111926,1723847345193,-158.90164562,0.00012971,2]
[335111927,1723847345215,-300.0,0.00012984,2]
[335111928,1723847345236,-319.72766707,0.00012985,2]
[335111929,1723847345258,-543.08033697,0.00012985,2]
[335111930,1723847345279,-154.89923821,0.00012989,2]
[335111931,1723847345301,-506.48190828,0.00012989,2]
[335111932,1723847345322,-155.18167037,0.00012991,2]
[335111933,1723847345343,-202.48635104,0.00012991,2]
[335111934,1723847345365,-159.66315671,0.00012991,2]
[335111935,1723847345385,-239.49841873,0.00012991,2]
[335111936,1723847345406,-193.07381292,0.00013,2]
[335111937,1723847345429,-500.0,0.00013025,2]
[335111938,1723847345453,-195.23132214,0.00013596,2]
[335111939,1723847345555,-241.52020036,0.00013597,2]
[335111940,1723847345576,-2616.36098597,0.00015171,2]
[335111941,1723847346110,-3783.7792447,0.00015171,2]
[335111942,1723847346133,-3000.0,0.00015304,2]
[335111943,1723847346157,-2414.33723643,0.00023232,2]
[335111944,1723847346178,-536.02607522,0.00023332,2]
[335111945,1723847346202,-500.0,0.00023332,2]
[335111946,1723847346226,-250.93125227,0.00023332,2]
[335111947,1723847346252,-500.0,0.00023332,2]
[335111948,1723847346279,-500.0,0.00023332,2]
[335111949,1723847346303,-500.0,0.00023332,2]
[335111950,1723847346330,-500.0,0.00023332,2]
[335111951,1723847346355,-500.0,0.00023332,2]
[335111952,1723847346382,-593.32207892,0.00023332,2]
[335111953,1723847346406,-500.0,0.00023332,2]
[335111954,1723847346433,-500.0,0.00023332,2]
[335111955,1723847346457,-500.0,0.00023332,2]
[335111956,1723847346481,-500.0,0.00023332,2]
[335111957,1723847346509,-500.0,0.00023332,2]
[335111958,1723847346533,-500.0,0.00023332,2]
[335111959,1723847346556,-500.0,0.00023332,2]
[335111960,1723847346580,-15.04534089,0.00023332,2]
[335111961,1723847350102,-484.95465911,0.00023332,2]
[335111962,1723847350126,-500.0,0.00023332,2]
[335111963,1723847350149,-500.0,0.00023332,2]
[335111964,1723847350172,-500.0,0.00023332,2]
[335111965,1723847350195,-500.0,0.00023332,2]
[335111966,1723847350217,-500.0,0.00023332,2]
[335111967,1723847350239,-500.0,0.00023332,2]
[335111968,1723847350338,-500.0,0.00023332,2]
[335111969,1723847350359,-500.0,0.00023332,2]
[335111970,1723847350381,-500.0,0.00023332,2]
[335111971,1723847350403,-500.0,0.00023332,2]
[335111972,1723847350425,-500.0,0.00023332,2]
[335111973,1723847350446,-500.0,0.00023332,2]
[335111974,1723847350469,-500.0,0.00023332,2]
[335111975,1723847350490,-500.0,0.00023332,2]
[335111976,1723847350512,-500.0,0.00023332,2]
[335111977,1723847350535,-500.0,0.00023332,2]
[335111978,1723847350559,-500.0,0.00023332,2]
[335111979,1723847350583,-500.0,0.00023332,2]
[335111980,1723847350610,-500.0,0.00023332,2]
[335111981,1723847350636,-500.0,0.00023332,2]
[335111982,1723847350661,-500.0,0.00023332,2]